[Event "Irish International Open 2019"]
[Site "Dublin"]
[Date "2019.04.21"]
[Round "8.21"]
[White "Kersten, Julian"]
[Black "Putar, Leon"]
[Result "1-0"]
[ECO "A45"]
[WhiteElo "1996"]
[BlackElo "1549"]
[Annotator "NA"]
[PlyCount "59"]
[EventDate "2019.02.28"]
[EventType "swiss"]
[EventCountry "IRL"]
[SourceTitle "playchess.com"]
[Source "ChessBase"]
[SourceQuality "1"]
[TimeControl "5400+30"]

1. d4 {[%emt 1:30:30]} Nf6 {[%emt 1:30:30]} 2. Bg5 {[%emt 0:00:30]} g6 {[%emt 0:00:30]} 3. Bxf6 {[%emt 0:00:30]} exf6 {[%emt 0:00:30]} 4. c4 {[%emt 0:00:30]} c6 {[%emt 0:00:30]} 5. Nc3 {[%emt 0:00:30]} d5 {[%emt 0:00:30]} 6. cxd5 {[%emt 0:00:30]} cxd5 {[%emt 0:00:30]} 7. e3 {[%emt 0:00:30]} Nc6 {[%emt 0:00:30]} 8. g3 {[%emt 0:00:30]} Be6 {[%emt 0:00:30]} 9. Nge2 {[%emt 0:00:30]} Rc8 {[%emt 0:00:30]} 10. Bg2 {[%emt 0:00:30]} Bb4 {[%emt 0:00:30]} 11. Qb3 {[%emt 0:00:30]} O-O {[%emt 0:00:30]} 12. O-O {[%emt 0:00:30]} Bxc3 {[%emt 0:00:30]} 13. Nxc3 {[%emt 0:00:30]} Ne7 {[%emt 0:00:30]} 14. Qxb7 {[%emt 0:00:30]} Rb8 {[%emt 0:00:30]} 15. Qxa7 {[%emt 0:00:30]} Rxb2 {[%emt 0:00:30]} 16. Rab1 {[%emt 0:00:30]} Rd2 {[%emt 0:00:30]} 17. Qc5 {[%emt 0:00:30]} Qd7 {[%emt 0:00:30]} 18. Qb4 {[%emt 0:00:30]} Rc2 {[%emt 0:00:30]} 19. Qb3 {[%emt 0:00:30]} Rd2 {[%emt 0:00:30]} 20. Rfc1 {[%emt 0:00:30]} Bh3 {[%emt 0:00:30]} 21. Nxd5 {[%emt 0:00:30]} Bxg2 {[%emt 0:00:30]} 22. Nxf6+ {[%emt 0:00:30]} Kg7 {[%emt 0:00:30]} 23. Nxd7 {[%emt 0:00:30]} Rd8 {[%emt 0:00:30]} 24. Qb4 {[%emt 0:00:30]} Rxd7 {[%emt 0:00:30]} 25. Qxd2 {[%emt 0:00:30]} Bh3 {[%emt 0:00:30]} 26. a4 {[%emt 0:00:30]} Nf5 {[%emt 0:00:30]} 27. a5 {[%emt 0:00:30]} Nh4 {[%emt 0:00:30]} 28. gxh4 {[%emt 0:00:30]} g5 {[%emt 0:00:30]} 29. hxg5 {[%emt 0:00:30]} Rd5 {[%emt 0:00:30]} 30. e4 {[%emt 0:00:30]} 1-0

[Event "Irish International Open 2019"]
[Site "Dublin"]
[Date "2019.04.21"]
[Round "8.22"]
[White "Mulligan, Scott"]
[Black "O`Connell, Kevin J."]
[Result "1/2-1/2"]
[ECO "C78"]
[WhiteElo "2006"]
[BlackElo "2328"]
[Annotator "ChessBase"]
[PlyCount "79"]
[EventDate "2019.02.28"]
[EventType "swiss"]
[EventCountry "IRL"]
[SourceTitle "playchess.com"]
[Source "ChessBase"]
[SourceQuality "1"]
[TimeControl "5400+30"]

1. e4 {[%emt 0:00:00]} e5 {[%emt 0:00:00]} 2. Nf3 {[%emt 0:00:00]} Nc6 {[%emt 0:00:00]} 3. Bb5 {[%emt 0:00:00]} a6 {[%emt 0:00:00]} 4. Ba4 {[%emt 0:01:37]} Nf6 {[%emt 0:02:08]} 5. d3 {[%emt 0:01:48]} Bc5 {[%emt 0:03:18]} 6. O-O {[%emt 0:01:21]} d6 {[%emt 0:01:17]} 7. c3 {[%emt 0:02:10]} O-O {[%emt 0:01:12]} 8. h3 {[%emt 0:00:32]} h6 {[%emt 0:09:44]} 9. Nbd2 {[%emt 0:02:17]} b5 {[%emt 0:07:52]} 10. Bc2 {[%emt 0:00:39]} Nh7 {[%emt 0:08:54]} 11. Nb3 {[%emt 0:11:48]} Ba7 {[%emt 0:03:24]} 12. d4 {[%emt 0:00:19]} f6 {[%emt 0:00:19]} 13. Nh4 {[%emt 0:08:35]} Ne7 {[%emt 0:06:10]} 14. Be3 {[%emt 0:07:01]} g5 {[%emt 0:17:16]} 15. Nf5 {[%emt 0:01:34]} Bxf5 {[%emt 0:07:47]} 16. exf5 {[%emt 0:00:44]} Qe8 {[%emt 0:01:20]} 17. Qd2 {[%emt 0:11:29]} d5 {[%emt 0:10:03]} 18. Rfe1 {[%emt 0:09:36]} e4 {[%emt 0:03:38]} 19. g4 {[%emt 0:01:15]} Nxf5 {[%emt 0:05:29]} 20. gxf5 {[%emt 0:04:18]} Qh5 {[%emt 0:00:09]} 21. Qe2 {[%emt 0:12:15]} Qxh3 {[%emt 0:01:18]} 22. Qf1 {[%emt 0:00:34]} Qxf5 {[%emt 0:01:08]} 23. f3 {[%emt 0:00:01]} Qxf3 {[%emt 0:04:37]} 24. Qxf3 {[%emt 0:00:01]} exf3 {[%emt 0:00:08]} 25. Bf5 {[%emt 0:00:14]} Rfe8 {[%emt 0:01:30]} 26. Kf2 {[%emt 0:02:39]} Nf8 {[%emt 0:01:23]} 27. Rh1 {[%emt 0:01:47]} Kg7 {[%emt 0:00:37]} 28. Rh3 {[%emt 0:03:11]} Ng6 {[%emt 0:00:30]} 29. Bxg6 {[%emt 0:11:45]} Kxg6 {[%emt 0:00:04]} 30. Rah1 {[%emt 0:00:06]} Rh8 {[%emt 0:00:09]} 31. Rh5 {[%emt 0:00:48]} Rae8 {[%emt 0:00:36]} 32. Kxf3 {[%emt 0:00:33]} Bb6 {[%emt 0:01:51]} 33. Nc5 {[%emt 0:01:16]} Bxc5 {[%emt 0:00:03]} 34. dxc5 {[%emt 0:00:03]} c6 {[%emt 0:00:22]} 35. Bd4 {[%emt 0:00:53]} Re4 {[%emt 0:00:02]} 36. a3 {[%emt 0:01:26]} Rh7 {[%emt 0:00:10]} 37. Kf2 {[%emt 0:01:15]} Re6 {[%emt 0:01:44]} 38. Be3 {[%emt 0:00:55]} Re4 {[%emt 0:00:22]} 39. Kf3 {[%emt 0:00:14]} Re6 {[%emt 0:01:31]} 40. Kf2 {[%emt 0:00:01]} 1/2-1/2

[Event "Irish International Open 2019"]
[Site "Dublin"]
[Date "2019.04.21"]
[Round "8.23"]
[White "Moran, Darragh"]
[Black "Murphy, Sean"]
[Result "1/2-1/2"]
[ECO "D10"]
[WhiteElo "1844"]
[BlackElo "1976"]
[Annotator "NA"]
[PlyCount "49"]
[EventDate "2019.02.28"]
[EventType "swiss"]
[EventCountry "IRL"]
[SourceTitle "playchess.com"]
[Source "ChessBase"]
[SourceQuality "1"]
[TimeControl "5400+30"]

1. d4 {[%emt 0:00:00]} d5 {[%emt 0:00:00]} 2. c4 {[%emt 0:00:00]} c6 {[%emt 0:00:00]} 3. cxd5 {[%emt 0:00:00]} cxd5 {[%emt 0:00:00]} 4. Bg5 {[%emt 0:00:00]} h6 {[%emt 0:00:00]} 5. Bh4 {[%emt 0:00:00]} Qb6 {[%emt 0:00:00]} 6. Nc3 {[%emt 0:00:38]} Qxb2 {[%emt 0:00:04]} 7. Nxd5 {[%emt 0:00:25]} e6 {[%emt 0:00:07]} 8. Qc1 {[%emt 0:07:32]} Bb4+ {[%emt 0:08:50]} 9. Nxb4 {[%emt 0:00:34]} Qxb4+ {[%emt 0:00:25]} 10. Qd2 {[%emt 0:00:10]} Nc6 {[%emt 0:06:12]} 11. e3 {[%emt 0:06:32]} Nge7 {[%emt 0:10:39]} 12. Nf3 {[%emt 0:01:42]} Nf5 {[%emt 0:01:06]} 13. Qxb4 {[%emt 0:08:03]} Nxb4 {[%emt 0:00:09]} 14. Bb5+ {[%emt 0:00:31]} Bd7 {[%emt 0:00:40]} 15. Bxd7+ {[%emt 0:00:24]} Kxd7 {[%emt 0:00:06]} 16. Rb1 {[%emt 0:11:27]} Nxh4 {[%emt 0:00:31]} 17. Ne5+ {[%emt 0:07:24]} Ke7 {[%emt 0:13:28]} 18. Rxb4 {[%emt 0:02:07]} Rab8 {[%emt 0:01:06]} 19. Kd2 {[%emt 0:08:31]} Rhc8 {[%emt 0:01:04]} 20. Rc1 {[%emt 0:02:22]} Rxc1 {[%emt 0:02:59]} 21. Kxc1 {[%emt 0:00:26]} Rc8+ {[%emt 0:00:13]} 22. Kd2 {[%emt 0:01:19]} Rc7 {[%emt 0:03:09]} 23. g3 {[%emt 0:01:13]} Nf5 {[%emt 0:01:28]} 24. f3 {[%emt 0:03:28]} Nd6 {[%emt 0:01:54]} 25. a4 {[%emt 0:05:55]} 1/2-1/2

[Event "Irish International Open 2019"]
[Site "Dublin"]
[Date "2019.04.21"]
[Round "8.24"]
[White "Carroll, Peter"]
[Black "Larter, Nick J."]
[Result "1-0"]
[ECO "B21"]
[WhiteElo "2006"]
[BlackElo "1830"]
[Annotator "NA"]
[PlyCount "69"]
[EventDate "2019.02.28"]
[EventType "swiss"]
[EventCountry "IRL"]
[SourceTitle "playchess.com"]
[Source "ChessBase"]
[SourceQuality "1"]
[TimeControl "5400+30"]

1. e4 {[%emt 0:00:00]} c5 {[%emt 0:00:00]} 2. d4 {[%emt 0:00:11]} cxd4 {[%emt 0:00:06]} 3. c3 {[%emt 0:00:03]} dxc3 {[%emt 0:00:35]} 4. Nxc3 {[%emt 0:00:03]} e6 {[%emt 0:02:13]} 5. Nf3 {[%emt 0:01:03]} a6 {[%emt 0:00:11]} 6. Bc4 {[%emt 0:07:42]} b5 {[%emt 0:00:08]} 7. Bb3 {[%emt 0:00:05]} d6 {[%emt 0:00:12]} 8. O-O {[%emt 0:03:03]} Be7 {[%emt 0:09:17]} 9. Qe2 {[%emt 0:03:41]} Ra7 {[%emt 0:01:14]} 10. Be3 {[%emt 0:05:43]} Rd7 {[%emt 0:00:11]} 11. Rac1 {[%emt 0:01:40]} Bb7 {[%emt 0:01:59]} 12. Rfd1 {[%emt 0:01:32]} Nc6 {[%emt 0:00:11]} 13. Rd2 {[%emt 0:17:23]} Na5 {[%emt 0:00:15]} 14. Bxe6 {[%emt 0:00:06]} fxe6 {[%emt 0:00:28]} 15. Nd4 {[%emt 0:00:01]} Bf6 {[%emt 0:07:44]} 16. Nxe6 {[%emt 0:00:48]} Qc8 {[%emt 0:03:35]} 17. Rdc2 {[%emt 0:01:48]} Qc4 {[%emt 0:05:19]} 18. Qg4 {[%emt 0:01:16]} Re7 {[%emt 0:00:14]} 19. Nd5 {[%emt 0:00:33]} Bxd5 {[%emt 0:04:18]} 20. Rxc4 {[%emt 0:03:20]} Bxe6 {[%emt 0:02:41]} 21. Rc8+ {[%emt 0:01:12]} Kf7 {[%emt 0:00:30]} 22. Qf3 {[%emt 0:01:33]} Bxc8 {[%emt 0:09:49]} 23. Rxc8 {[%emt 0:00:10]} Re8 {[%emt 0:00:34]} 24. Qh5+ {[%emt 0:00:55]} g6 {[%emt 0:01:09]} 25. Qd5+ {[%emt 0:00:05]} Re6 {[%emt 0:01:11]} 26. f4 {[%emt 0:01:21]} Ne7 {[%emt 0:03:04]} 27. Rc7 {[%emt 0:00:04]} Rc8 {[%emt 0:02:01]} 28. Ra7 {[%emt 0:00:03]} Nac6 {[%emt 0:18:07]} 29. f5 {[%emt 0:00:08]} gxf5 {[%emt 0:01:09]} 30. exf5 {[%emt 0:00:01]} Nxa7 {[%emt 0:00:51]} 31. Qxe6+ {[%emt 0:00:02]} Kg7 {[%emt 0:00:20]} 32. Bh6+ {[%emt 0:00:21]} Kxh6 {[%emt 0:03:29]} 33. Qxf6+ {[%emt 0:00:02]} Kh5 {[%emt 0:00:41]} 34. Qxe7 {[%emt 0:00:10]} Rc1+ {[%emt 0:01:08]} 35. Kf2 {[%emt 0:00:01]} 1-0

[Event "Irish International Open 2019"]
[Site "Dublin"]
[Date "2019.04.21"]
[Round "8.25"]
[White "Cafolla, Peter"]
[Black "Lundback, Anders"]
[Result "0-1"]
[ECO "B13"]
[WhiteElo "1949"]
[BlackElo "1806"]
[Annotator "NA"]
[PlyCount "78"]
[EventDate "2019.02.28"]
[EventType "swiss"]
[EventCountry "IRL"]
[SourceTitle "playchess.com"]
[Source "ChessBase"]
[SourceQuality "1"]
[TimeControl "5400+30"]

1. e4 {[%emt 0:00:00]} c6 {[%emt 0:00:00]} 2. d4 {[%emt 0:00:00]} d5 {[%emt 0:00:00]} 3. exd5 {[%emt 0:00:00]} cxd5 {[%emt 0:00:00]} 4. c4 {[%emt 0:00:00]} Nf6 {[%emt 0:00:13]} 5. Nc3 {[%emt 0:00:04]} Nc6 {[%emt 0:01:18]} 6. Bg5 {[%emt 0:00:15]} Qb6 {[%emt 0:17:28]} 7. Bxf6 {[%emt 0:04:12]} exf6 {[%emt 0:00:30]} 8. Nxd5 {[%emt 0:10:00]} Bb4+ {[%emt 0:12:29]} 9. Nxb4 {[%emt 0:00:51]} Qxb4+ {[%emt 0:00:13]} 10. Qd2 {[%emt 0:00:09]} Qxd2+ {[%emt 0:01:39]} 11. Kxd2 {[%emt 0:00:08]} Nxd4 {[%emt 0:00:16]} 12. Kc3 {[%emt 0:02:19]} Nc6 {[%emt 0:01:16]} 13. Bd3 {[%emt 0:05:08]} Ne5 {[%emt 0:07:48]} 14. Re1 {[%emt 0:02:19]} Be6 {[%emt 0:00:35]} 15. Nf3 {[%emt 0:02:16]} Nxf3 {[%emt 0:04:46]} 16. gxf3 {[%emt 0:00:08]} O-O-O {[%emt 0:00:50]} 17. f4 {[%emt 0:01:26]} f5 {[%emt 0:14:45]} 18. Re5 {[%emt 0:05:58]} g6 {[%emt 0:00:33]} 19. b4 {[%emt 0:01:45]} Rd7 {[%emt 0:02:01]} 20. h4 {[%emt 0:03:39]} Rhd8 {[%emt 0:01:45]} 21. Rh3 {[%emt 0:01:24]} Rd4 {[%emt 0:00:58]} 22. Rf3 {[%emt 0:01:28]} h5 {[%emt 0:02:38]} 23. a4 {[%emt 0:01:41]} Kb8 {[%emt 0:01:40]} 24. c5 {[%emt 0:02:21]} a5 {[%emt 0:02:10]} 25. bxa5 {[%emt 0:03:17]} Rxa4 {[%emt 0:00:41]} 26. a6 {[%emt 0:01:26]} bxa6 {[%emt 0:02:22]} 27. Rfe3 {[%emt 0:00:53]} Ka7 {[%emt 0:03:27]} 28. c6 {[%emt 0:02:42]} Kb6 {[%emt 0:01:03]} 29. c7 {[%emt 0:00:33]} Kxc7 {[%emt 0:01:09]} 30. Bc2 {[%emt 0:00:30]} Rc4+ {[%emt 0:01:32]} 31. Kb2 {[%emt 0:00:24]} Rd2 {[%emt 0:01:09]} 32. Rc3 {[%emt 0:00:37]} Rxc3 {[%emt 0:00:22]} 33. Kxc3 {[%emt 0:00:06]} Rxf2 {[%emt 0:00:10]} 34. Ba4 {[%emt 0:01:25]} Rxf4 {[%emt 0:00:43]} 35. Be8 {[%emt 0:00:12]} Rc4+ {[%emt 0:00:48]} 36. Kd3 {[%emt 0:00:10]} Rxh4 {[%emt 0:00:24]} 37. Bxf7 {[%emt 0:00:09]} Bxf7 {[%emt 0:00:24]} 38. Re7+ {[%emt 0:00:05]} Kc6 {[%emt 0:00:18]} 39. Rxf7 {[%emt 0:00:05]} Rg4 {[%emt 0:00:12]} 0-1

[Event "Irish International Open 2019"]
[Site "Dublin"]
[Date "2019.04.21"]
[Round "8.26"]
[White "Plaza Reino, Mercedes"]
[Black "Moran, Hugh"]
[Result "1-0"]
[ECO "A55"]
[WhiteElo "1927"]
[BlackElo "1522"]
[Annotator "NA"]
[PlyCount "54"]
[EventDate "2019.02.28"]
[EventType "swiss"]
[EventCountry "IRL"]
[SourceTitle "playchess.com"]
[Source "ChessBase"]
[SourceQuality "1"]
[TimeControl "5400+30"]

1. d4 {[%emt 0:00:00]} d6 {[%emt 0:00:16]} 2. c4 {[%emt 0:00:00]} e5 {[%emt 0:00:04]} 3. Nf3 {[%emt 0:00:34]} Nd7 {[%emt 0:00:25]} 4. Nc3 {[%emt 0:00:17]} Ngf6 {[%emt 0:00:11]} 5. e4 {[%emt 0:00:15]} Be7 {[%emt 0:00:12]} 6. Be2 {[%emt 0:00:36]} O-O {[%emt 0:00:44]} 7. O-O {[%emt 0:00:15]} c6 {[%emt 0:01:29]} 8. Qc2 {[%emt 0:01:25]} Qc7 {[%emt 0:00:12]} 9. a3 {[%emt 0:02:22]} a5 {[%emt 0:00:19]} 10. Bd2 {[%emt 0:02:17]} Ne8 {[%emt 0:03:21]} 11. b4 {[%emt 0:06:00]} g6 {[%emt 0:02:01]} 12. Bh6 {[%emt 0:09:56]} Ng7 {[%emt 0:00:55]} 13. Qd2 {[%emt 0:04:20]} Re8 {[%emt 0:02:21]} 14. dxe5 {[%emt 0:06:05]} dxe5 {[%emt 0:01:10]} 15. c5 {[%emt 0:00:28]} Ne6 {[%emt 0:04:06]} 16. Bc4 {[%emt 0:03:06]} Nf6 {[%emt 0:01:08]} 17. h3 {[%emt 0:03:15]} Rd8 {[%emt 0:02:57]} 18. Qc2 {[%emt 0:04:16]} Nd4 {[%emt 0:03:44]} 19. Nxd4 {[%emt 0:01:19]} Rxd4 {[%emt 0:00:55]} 20. Qb3 {[%emt 0:03:51]} Bf8 {[%emt 0:03:44]} 21. Be3 {[%emt 0:00:58]} Rd8 {[%emt 0:04:58]} 22. f4 {[%emt 0:04:16]} b5 {[%emt 0:08:20]} 23. cxb6 {[%emt 0:01:38]} Qe7 {[%emt 0:01:17]} 24. Bc5 {[%emt 0:04:46]} Qb7 {[%emt 0:01:31]} 25. fxe5 {[%emt 0:00:45]} Bxc5+ {[%emt 0:00:45]} 26. bxc5 {[%emt 0:00:23]} Nxe4 {[%emt 0:00:49]} 27. Rxf7 {[%emt 0:02:05]} Nd2 {[%emt 0:00:04]} 1-0

[Event "Irish International Open 2019"]
[Site "Dublin"]
[Date "2019.04.21"]
[Round "8.27"]
[White "Scallan, Fiachra"]
[Black "Phelan, Leo"]
[Result "1/2-1/2"]
[ECO "B40"]
[WhiteElo "1899"]
[BlackElo "1708"]
[Annotator "NA"]
[PlyCount "84"]
[EventDate "2019.02.28"]
[EventType "swiss"]
[EventCountry "IRL"]
[SourceTitle "playchess.com"]
[Source "ChessBase"]
[SourceQuality "1"]
[TimeControl "5400+30"]

1. e4 {[%emt 0:00:00]} c5 {[%emt 0:00:00]} 2. Nf3 {[%emt 0:00:00]} e6 {[%emt 0:00:17]} 3. c3 {[%emt 0:00:02]} Nf6 {[%emt 0:00:13]} 4. Bd3 {[%emt 0:00:13]} Nc6 {[%emt 0:00:07]} 5. Bc2 {[%emt 0:00:52]} d5 {[%emt 0:00:30]} 6. e5 {[%emt 0:00:26]} Nd7 {[%emt 0:00:25]} 7. d4 {[%emt 0:00:10]} Qb6 {[%emt 0:00:07]} 8. O-O {[%emt 0:02:18]} Be7 {[%emt 0:00:30]} 9. a3 {[%emt 0:03:17]} O-O {[%emt 0:02:36]} 10. b4 {[%emt 0:07:11]} cxd4 {[%emt 0:00:48]} 11. cxd4 {[%emt 0:00:05]} f6 {[%emt 0:01:24]} 12. Qd3 {[%emt 0:00:40]} f5 {[%emt 0:00:34]} 13. Nc3 {[%emt 0:02:22]} Re8 {[%emt 0:02:16]} 14. g4 {[%emt 0:03:54]} Nf8 {[%emt 0:03:53]} 15. gxf5 {[%emt 0:01:28]} exf5 {[%emt 0:01:43]} 16. Nxd5 {[%emt 0:00:19]} Qd8 {[%emt 0:00:24]} 17. Nxe7+ {[%emt 0:04:09]} Qxe7 {[%emt 0:00:10]} 18. Bg5 {[%emt 0:00:59]} Qd7 {[%emt 0:01:16]} 19. Kh1 {[%emt 0:03:43]} b6 {[%emt 0:07:14]} 20. Ba4 {[%emt 0:02:47]} Bb7 {[%emt 0:07:10]} 21. Qc4+ {[%emt 0:04:02]} Qe6 {[%emt 0:03:00]} 22. Qxe6+ {[%emt 0:04:05]} Rxe6 {[%emt 0:01:48]} 23. d5 {[%emt 0:07:12]} Nxe5 {[%emt 0:04:39]} 24. dxe6 {[%emt 0:03:17]} Nxf3 {[%emt 0:01:35]} 25. Be3 {[%emt 0:00:17]} Nxe6 {[%emt 0:01:44]} 26. Rfd1 {[%emt 0:01:11]} f4 {[%emt 0:02:26]} 27. Bc1 {[%emt 0:01:17]} b5 {[%emt 0:10:14]} 28. Bxb5 {[%emt 0:01:05]} Nfd4+ {[%emt 0:00:42]} 29. Kg1 {[%emt 0:00:09]} Nxb5 {[%emt 0:00:12]} 30. Bb2 {[%emt 0:00:35]} Kf8 {[%emt 0:08:59]} 31. h4 {[%emt 0:03:20]} Rc8 {[%emt 0:02:00]} 32. Rac1 {[%emt 0:01:51]} Rxc1 {[%emt 0:00:48]} 33. Rxc1 {[%emt 0:01:48]} a6 {[%emt 0:02:58]} 34. Kh2 {[%emt 0:01:00]} Nbd4 {[%emt 0:02:03]} 35. Kh3 {[%emt 0:01:37]} f3 {[%emt 0:01:50]} 36. Rd1 {[%emt 0:00:30]} Ne2 {[%emt 0:00:30]} 37. Rd7 {[%emt 0:00:30]} Bc6 {[%emt 0:00:30]} 38. Rd6 {[%emt 0:00:30]} Bb5 {[%emt 0:00:30]} 39. Kg4 {[%emt 0:00:30]} N2f4 {[%emt 0:00:30]} 40. Kxf3 {[%emt 0:00:30]} Ke7 {[%emt 0:00:30]} 41. Rd2 {[%emt 0:00:30]} h6 {[%emt 0:00:30]} 42. Be5 {[%emt 0:00:30]} Nd3 {[%emt 0:00:30]} 1/2-1/2

[Event "Irish International Open 2019"]
[Site "Dublin"]
[Date "2019.04.22"]
[Round "9.1"]
[White "Larino Nieto, David"]
[Black "Ruck, Robert"]
[Result "0-1"]
[ECO "A30"]
[WhiteElo "2434"]
[BlackElo "2522"]
[Annotator "ChessBase"]
[PlyCount "168"]
[EventDate "2019.02.28"]
[EventType "swiss"]
[EventCountry "IRL"]
[SourceTitle "playchess.com"]
[Source "ChessBase"]
[SourceQuality "1"]
[TimeControl "5400+30"]

1. b3 {[%emt 0:00:00]} b6 {[%emt 0:03:44]} 2. Nf3 {[%emt 0:00:11]} Bb7 {[%emt 0:00:34]} 3. e3 {[%emt 0:00:15]} Nf6 {[%emt 0:00:37]} 4. Bb2 {[%emt 0:00:20]} e6 {[%emt 0:02:24]} 5. c4 {[%emt 0:00:03]} c5 {[%emt 0:00:51]} 6. Nc3 {[%emt 0:00:33]} Be7 {[%emt 0:04:37]} 7. Be2 {[%emt 0:01:23]} O-O {[%emt 0:01:03]} 8. Qc2 {[%emt 0:03:37]} d5 {[%emt 0:07:48]} 9. cxd5 {[%emt 0:00:33]} exd5 {[%emt 0:17:01]} 10. d4 {[%emt 0:00:15]} Nc6 {[%emt 0:01:35]} 11. Rd1 {[%emt 0:00:43]} cxd4 {[%emt 0:08:10]} 12. Nxd4 {[%emt 0:05:44]} Nxd4 {[%emt 0:00:36]} 13. Rxd4 {[%emt 0:00:36]} Rc8 {[%emt 0:02:02]} 14. Qd3 {[%emt 0:11:42]} Bc5 {[%emt 0:20:12]} 15. Ra4 {[%emt 0:02:51]} Bc6 {[%emt 0:00:42]} 16. Nb5 {[%emt 0:05:40]} Ne4 {[%emt 0:04:15]} 17. O-O {[%emt 0:00:27]} Ra8 {[%emt 0:01:58]} 18. Ra6 {[%emt 0:01:31]} Qd7 {[%emt 0:04:50]} 19. Nd4 {[%emt 0:16:41]} Bb7 {[%emt 0:00:30]} 20. Ra4 {[%emt 0:02:37]} a6 {[%emt 0:03:07]} 21. Nc2 {[%emt 0:14:43]} Rfe8 {[%emt 0:03:38]} 22. f3 {[%emt 0:01:57]} Nd6 {[%emt 0:05:26]} 23. Re1 {[%emt 0:15:34]} a5 {[%emt 0:01:07]} 24. Bf1 {[%emt 0:00:57]} Re6 {[%emt 0:01:57]} 25. Rh4 {[%emt 0:00:55]} Rg6 {[%emt 0:01:08]} 26. a3 {[%emt 0:00:48]} Qe7 {[%emt 0:01:32]} 27. Rh5 {[%emt 0:00:49]} Ne8 {[%emt 0:00:10]} 28. Qd2 {[%emt 0:02:31]} Nf6 {[%emt 0:00:18]} 29. Re5 {[%emt 0:00:48]} Qc7 {[%emt 0:00:16]} 30. Bd3 {[%emt 0:01:39]} Bd6 {[%emt 0:00:27]} 31. Bxg6 {[%emt 0:00:49]} Bxe5 {[%emt 0:00:02]} 32. Bxe5 {[%emt 0:00:05]} Qxe5 {[%emt 0:00:02]} 33. Bd3 {[%emt 0:00:13]} g6 {[%emt 0:01:04]} 34. Nd4 {[%emt 0:00:13]} Qe7 {[%emt 0:00:26]} 35. Qb2 {[%emt 0:01:01]} Nd7 {[%emt 0:00:19]} 36. Bb5 {[%emt 0:01:06]} Nc5 {[%emt 0:00:29]} 37. b4 {[%emt 0:00:40]} axb4 {[%emt 0:00:08]} 38. axb4 {[%emt 0:00:10]} Ne6 {[%emt 0:01:38]} 39. Nxe6 {[%emt 0:00:49]} Qxe6 {[%emt 0:01:01]} 40. Qd4 {[%emt 0:00:03]} Rc8 {[%emt 0:00:24]} 41. Ra1 {[%emt 0:01:17]} Qd6 {[%emt 0:01:13]} 42. Bd3 {[%emt 0:00:21]} Qc7 {[%emt 0:00:27]} 43. Rd1 {[%emt 0:01:44]} Re8 {[%emt 0:00:30]} 44. Bb5 {[%emt 0:01:03]} Re6 {[%emt 0:00:50]} 45. Ra1 {[%emt 0:00:52]} Qe5 {[%emt 0:00:47]} 46. Qxe5 {[%emt 0:02:17]} Rxe5 {[%emt 0:00:01]} 47. Ra7 {[%emt 0:00:01]} d4 {[%emt 0:00:28]} 48. Bc4 {[%emt 0:00:32]} dxe3 {[%emt 0:00:58]} 49. Rxb7 {[%emt 0:00:01]} e2 {[%emt 0:00:07]} 50. Bxe2 {[%emt 0:00:03]} Rxe2 {[%emt 0:00:04]} 51. Rxb6 {[%emt 0:00:07]} Rb2 {[%emt 0:00:20]} 52. h4 {[%emt 0:00:17]} h5 {[%emt 0:00:28]} 53. Kh2 {[%emt 0:02:46]} Kg7 {[%emt 0:00:42]} 54. Kg3 {[%emt 0:00:06]} f6 {[%emt 0:00:29]} 55. Rb7+ {[%emt 0:00:20]} Kh6 {[%emt 0:01:16]} 56. f4 {[%emt 0:00:21]} Rb3+ {[%emt 0:00:24]} 57. Kh2 {[%emt 0:00:01]} g5 {[%emt 0:00:28]} 58. hxg5+ {[%emt 0:01:35]} fxg5 {[%emt 0:00:04]} 59. Rb6+ {[%emt 0:02:02]} Kg7 {[%emt 0:00:14]} 60. f5 {[%emt 0:01:29]} h4 {[%emt 0:00:58]} 61. b5 {[%emt 0:00:36]} Kf7 {[%emt 0:00:16]} 62. Rb8 {[%emt 0:01:03]} Kf6 {[%emt 0:00:24]} 63. Rf8+ {[%emt 0:00:31]} Ke5 {[%emt 0:00:48]} 64. Rb8 {[%emt 0:00:30]} Kxf5 {[%emt 0:00:51]} 65. Kg1 {[%emt 0:00:05]} Kg4 {[%emt 0:00:14]} 66. b6 {[%emt 0:00:56]} Kg3 {[%emt 0:00:20]} 67. Kf1 {[%emt 0:00:24]} Rb1+ {[%emt 0:00:50]} 68. Ke2 {[%emt 0:00:01]} Rb2+ {[%emt 0:00:30]} 69. Ke3 {[%emt 0:00:03]} g4 {[%emt 0:00:33]} 70. b7 {[%emt 0:00:06]} Rb1 {[%emt 0:00:41]} 71. Ke2 {[%emt 0:01:26]} Rb6 {[%emt 0:00:10]} 72. Kf1 {[%emt 0:00:29]} Rb2 {[%emt 0:00:50]} 73. Ke1 {[%emt 0:00:32]} Rb5 {[%emt 0:00:30]} 74. Kf1 {[%emt 0:00:10]} Rf5+ {[%emt 0:00:29]} 75. Kg1 {[%emt 0:00:04]} Rb5 {[%emt 0:00:32]} 76. Kf1 {[%emt 0:00:01]} Rb4 {[%emt 0:00:33]} 77. Ke2 {[%emt 0:01:57]} Rb1 {[%emt 0:00:09]} 78. Ke3 {[%emt 0:00:29]} Rb2 {[%emt 0:00:12]} 79. Kd3 {[%emt 0:00:48]} Kxg2 {[%emt 0:01:00]} 80. Rg8 {[%emt 0:00:02]} g3 {[%emt 0:00:37]} 81. b8=Q {[%emt 0:00:02]} Rxb8 {[%emt 0:00:03]} 82. Rxb8 {[%emt 0:00:08]} Kh2 {[%emt 0:00:23]} 83. Ke3 {[%emt 0:01:47]} g2 {[%emt 0:00:09]} 84. Rb2 {[%emt 0:00:05]} Kh1 {[%emt 0:00:30]} 0-1

[Event "Irish International Open 2019"]
[Site "Dublin"]
[Date "2019.04.22"]
[Round "9.2"]
[White "Burg, Twan"]
[Black "Epishin, Vladimir"]
[Result "1/2-1/2"]
[ECO "B01"]
[WhiteElo "2519"]
[BlackElo "2568"]
[Annotator "ChessBase"]
[PlyCount "48"]
[EventDate "2019.02.28"]
[EventType "swiss"]
[EventCountry "IRL"]
[SourceTitle "playchess.com"]
[Source "ChessBase"]
[SourceQuality "1"]
[TimeControl "5400+30"]

1. e4 {[%emt 0:00:00]} d5 {[%emt 0:00:12]} 2. exd5 {[%emt 0:00:00]} Qxd5 {[%emt 0:00:05]} 3. Nc3 {[%emt 0:00:00]} Qd6 {[%emt 0:00:02]} 4. d4 {[%emt 0:00:02]} Nf6 {[%emt 0:00:14]} 5. Nf3 {[%emt 0:00:28]} g6 {[%emt 0:00:13]} 6. h3 {[%emt 0:00:23]} Bg7 {[%emt 0:01:06]} 7. Nb5 {[%emt 0:00:11]} Qd8 {[%emt 0:01:58]} 8. Bf4 {[%emt 0:01:14]} Na6 {[%emt 0:07:24]} 9. c4 {[%emt 0:00:24]} Bf5 {[%emt 0:03:26]} 10. Be2 {[%emt 0:00:55]} O-O {[%emt 0:00:49]} 11. O-O {[%emt 0:00:12]} c5 {[%emt 0:09:08]} 12. d5 {[%emt 0:02:38]} Ne4 {[%emt 0:05:40]} 13. Qc1 {[%emt 0:02:27]} Nd6 {[%emt 0:01:34]} 14. Nc3 {[%emt 0:01:18]} Re8 {[%emt 0:01:50]} 15. Rd1 {[%emt 0:01:20]} Qb6 {[%emt 0:03:31]} 16. g4 {[%emt 0:07:45]} Bd7 {[%emt 0:01:49]} 17. Be5 {[%emt 0:01:06]} f6 {[%emt 0:03:25]} 18. Bg3 {[%emt 0:01:22]} Rad8 {[%emt 0:00:13]} 19. Bf1 {[%emt 0:14:58]} f5 {[%emt 0:08:32]} 20. g5 {[%emt 0:01:16]} e5 {[%emt 0:01:05]} 21. dxe6 {[%emt 0:00:15]} Bxe6 {[%emt 0:00:02]} 22. Be5 {[%emt 0:02:02]} Nf7 {[%emt 0:14:54]} 23. Bxg7 {[%emt 0:00:22]} Nd6 {[%emt 0:34:18]} 24. Be5 {[%emt 1:01:22]} Nb4 {[%emt 0:00:30]} 1/2-1/2